fUSD/lending_fUSD_20260416
["ID","MTS","AMOUNT","RATE_DAILY","PERIOD"]
[420613291,1776341438971,-384.28636093,0.0001,2]
[420613292,1776341438981,-822.06253517,0.0001,2]
[420613293,1776341438990,-746.69922696,0.0001,2]
[420613294,1776341438999,-856.37638083,0.0001,2]
[420613295,1776341439009,-151.0,0.0001,2]
[420613296,1776341439019,-171.37133105,0.0001,2]
[420613297,1776341439028,-570.84630923,0.0001,2]
[420613298,1776341439037,-188.1927831,0.0001,2]
[420613299,1776341439047,-151.0,0.0001,2]
[420613300,1776341439056,-151.0,0.0001,2]
[420613302,1776341439066,-500.0,0.0001,2]
[420613303,1776341439076,-151.0,0.0001,2]
[420613304,1776341439085,-200.0,0.0001,2]
[420613305,1776341439094,-151.0,0.0001,2]
[420613306,1776341439103,-500.0,0.0001,2]
[420613307,1776341439112,-151.0,0.0001,2]
[420613308,1776341439122,-500.0,0.0001,2]
[420613309,1776341439131,-151.0,0.0001,2]
[420613310,1776341439141,-500.0,0.0001,2]
[420613311,1776341439150,-500.0,0.0001,2]
[420613312,1776341439159,-151.0,0.0001,2]
[420613313,1776341439169,-151.0,0.0001,2]
[420613314,1776341439178,-151.0,0.0001,2]
[420613315,1776341439187,-151.0,0.0001,2]
[420613316,1776341439196,-151.0,0.0001,2]
[420613317,1776341439205,-151.0,0.0001,2]
[420613318,1776341439215,-151.0,0.0001,2]
[420613319,1776341439225,-151.0,0.0001,2]
[420613320,1776341439235,-500.0,0.0001,2]
[420613321,1776341439244,-151.0,0.0001,2]
[420613322,1776341439254,-500.0,0.0001,2]
[420613323,1776341439263,-151.0,0.0001,2]
[420613324,1776341439272,-500.0,0.0001,2]
[420613325,1776341439282,-151.0,0.0001,2]
[420613326,1776341439292,-500.0,0.0001,2]
[420613327,1776341439301,-151.0,0.0001,2]
[420613328,1776341439310,-500.0,0.0001,2]
[420613329,1776341439319,-151.0,0.0001,2]
[420613330,1776341439329,-500.0,0.0001,2]
[420613331,1776341439339,-151.0,0.0001,2]
[420613332,1776341439348,-151.0,0.0001,2]
[420613333,1776341439357,-151.0,0.0001,2]
[420613334,1776341439367,-1600.0,0.0001,3]
[420613335,1776341439376,-151.0,0.0001,2]
[420613336,1776341439385,-151.0,0.0001,2]
[420613337,1776341439395,-151.0,0.0001,2]
[420613338,1776341439404,-151.0,0.0001,2]
[420613339,1776341439413,-151.0,0.0001,2]
[420613340,1776341439423,-151.0,0.0001,2]
[420613341,1776341439433,-151.0,0.0001,2]
[420613342,1776341439443,-151.0,0.0001,2]
[420613343,1776341439453,-151.0,0.0001,2]
[420613344,1776341439462,-1386.78395259,0.0001,2]
[420613345,1776341439470,-872.57,0.0001002,2]
[420613346,1776341439480,-500.0,0.00010031,2]
[420613347,1776341439490,-151.0,0.00010031,2]
[420613348,1776341439499,-500.0,0.00010086,2]
[420613349,1776341439508,-151.0,0.00010086,2]
[420613350,1776341439518,-1000.0,0.00010131,2]
[420613351,1776341439529,-1025.47467826,0.00010131,2]
[420613352,1776341439538,-1000.0,0.00010131,2]
[420613353,1776341439547,-164.51888856,0.00010131,2]
[420613354,1776341439557,-500.0,0.00010141,2]
[420613355,1776341439566,-151.0,0.00010141,2]
[420613356,1776341439575,-5022.007,0.00010147,2]
[420613357,1776341439584,-302.204,0.00010147,2]
[420613358,1776341439593,-500.0,0.00010196,2]
[420613359,1776341439603,-596.44303574,0.000102,2]
[420613360,1776341439612,-406.50734664,0.000102,2]
[420613361,1776341439621,-5337.33132031,0.000102,2]
[420613362,1776341439631,-1482.69073619,0.00010204,2]
[420613363,1776341439641,-151.0,0.00010219,2]
[420613364,1776341439651,-1050.724,0.00010219,2]
[420613365,1776341439660,-622.0,0.00010219,2]
[420613366,1776341439669,-3528.0,0.00010219,2]
[420613367,1776341439679,-1265.0,0.00010219,2]
[420613368,1776341439689,-211.208368,0.00010219,2]
[420613369,1776341439699,-211.208368,0.00010219,2]
[420613370,1776341439708,-211.208368,0.00010219,2]
[420613371,1776341439718,-211.208368,0.00010219,2]
[420613372,1776341439728,-197.183994,0.00010219,2]
[420613373,1776341439737,-197.183994,0.00010219,2]
[420613374,1776341439747,-197.183994,0.00010219,2]
[420613375,1776341439756,-197.183994,0.00010219,2]
[420613376,1776341439766,-160.0,0.00010232,2]
[420613377,1776341439774,-500.0,0.00010251,2]
[420613378,1776341439783,-864.05011639,0.0001029,2]
[420613379,1776341439793,-1018.00837152,0.00010299,3]
[420613380,1776341439802,-560.71487964,0.000103,2]
[420613381,1776341439811,-1451948.43498155,0.000103,2]
[420613385,1776341442474,-5852.37784463,0.000103,2]
[420613386,1776341442496,-1858.7,0.000103,2]
[420613402,1776341445870,-3620.55017345,0.00010071,2]
[420613403,1776341445992,-156.44982655,0.00010071,2]
[420613404,1776341446002,-25837.63848923,0.000103,2]
[420613424,1776341446896,-6356.90725166,0.000103,2]
[420613452,1776341447156,-151.0,9.903e-05,2]
[420613454,1776341447165,-4519.60698737,0.000103,2]
[420613455,1776341467728,1441.86,0.000164,120]
[420613456,1776341491639,-145985.0,9.496e-05,2]
[420613459,1776341659127,1297.67,0.000164,120]
[420613460,1776341845688,1167.91,0.000164,120]
[420613461,1776342036091,1051.11,0.000164,120]
[420613462,1776342230743,946.0,0.000164,120]
[420613463,1776342420130,851.4,0.000164,120]
[420613464,1776342609743,766.26,0.000164,120]
[420613474,1776342632452,-250.0,8.407e-05,2]
[420613475,1776342632462,-1966.44006454,8.492e-05,2]
[420613476,1776342632473,-1600.0,8.764e-05,2]
[420613477,1776342632483,-300.0,8.784e-05,2]
[420613478,1776342632493,-300.0,8.784e-05,2]
[420613479,1776342632504,-1200.0,8.784e-05,2]
[420613480,1776342632514,-300.0,8.784e-05,2]
[420613481,1776342632524,-300.0,8.784e-05,2]
[420613482,1776342632534,-11413.21,8.785e-05,2]
[420613483,1776342632544,-2000.0,8.998e-05,2]
[420613484,1776342632554,-3208.22657772,9e-05,2]
[420613485,1776342632564,-171.62,9.119e-05,2]
[420613486,1776342632574,-1200.0,9.154e-05,2]
[420613487,1776342632584,-5000.0,9.155e-05,2]
[420613488,1776342632593,-250.0,9.155e-05,2]
[420613489,1776342632603,-250.0,9.155e-05,2]
[420613490,1776342632612,-163.28,9.16e-05,2]
[420613491,1776342632622,-500.0,9.205e-05,2]
[420613492,1776342632632,-150.0,9.3e-05,2]
[420613493,1776342632642,-150.0,9.345e-05,2]
[420613494,1776342632651,-150.0,9.345e-05,2]
[420613495,1776342632661,-150.0,9.345e-05,2]
[420613496,1776342632671,-32518.114,9.373e-05,2]
[420613497,1776342632680,-150.0,9.395e-05,2]
[420613498,1776342632690,-10864.0238,9.396e-05,2]
[420613499,1776342632700,-3669.6966,9.396e-05,2]
[420613501,1776342632710,-2500.0,9.396e-05,2]
[420613502,1776342632720,-7898.7544,9.396e-05,2]
[420613504,1776342632729,-6781.3842,9.396e-05,2]
[420613507,1776342632739,-500.0,9.397e-05,2]
[420613509,1776342632748,-151.0,9.493e-05,2]
[420613511,1776342632758,-300.0,9.495e-05,2]
[420613513,1776342632768,-4068.57045238,9.495e-05,2]
[420613515,1776342632777,-1000.0,9.506e-05,2]
[420613517,1776342632787,-420.0,9.663e-05,2]
[420613519,1776342632797,-1680.0,9.663e-05,2]
[420613521,1776342632806,-420.0,9.663e-05,2]
[420613522,1776342632816,-9999.99,9.67e-05,2]
[420613523,1776342632826,-152.44,9.679e-05,2]
[420613524,1776342632836,-173.26,9.711e-05,2]
[420613526,1776342632846,-1600.0,9.859e-05,2]
[420613528,1776342632856,-15143.2,9.863e-05,2]
[420613530,1776342632866,-721.12765535,9.881e-05,2]
[420613532,1776342632876,-200.0,9.881e-05,2]
[420613535,1776342632886,-500.0,9.881e-05,2]
[420613537,1776342632896,-2482.15265228,9.881e-05,2]
[420613539,1776342632905,-151.0,9.881e-05,2]
[420613541,1776342632915,-500.0,9.881e-05,2]
[420613543,1776342632925,-500.0,9.881e-05,2]
[420613545,1776342632935,-500.0,9.881e-05,2]
[420613547,1776342632945,-500.0,9.881e-05,2]
[420613549,1776342632955,-500.0,9.881e-05,2]
[420613551,1776342632964,-500.0,9.881e-05,2]
[420613553,1776342632974,-500.0,9.881e-05,2]
[420613554,1776342632984,-500.0,9.881e-05,2]
[420613555,1776342632994,-174.61919141,9.881e-05,2]
[420613556,1776342633005,-500.0,9.881e-05,2]
[420613557,1776342633015,-500.0,9.881e-05,2]
[420613558,1776342633024,-500.0,9.881e-05,2]
[420613559,1776342633034,-265.64755603,0.0001,2]
[420613560,1776342633044,-265.64755603,0.0001,2]
[420613561,1776342633055,-265.64755603,0.0001,2]
[420613562,1776342633064,-151.0,0.0001,2]
[420613563,1776342633074,-151.0,0.0001,2]
[420613564,1776342633084,-151.0,0.0001,2]
[420613565,1776342633095,-151.0,0.0001,2]
[420613566,1776342633104,-151.0,0.0001,2]
[420613567,1776342633115,-151.0,0.0001,2]
[420613568,1776342633125,-500.0,0.0001,2]
[420613569,1776342633135,-151.0,0.0001,2]
[420613570,1776342633147,-500.0,0.0001,2]
[420613571,1776342633157,-151.0,0.0001,2]
[420613572,1776342633168,-500.0,0.0001,2]
[420613573,1776342633178,-151.0,0.0001,2]
[420613574,1776342633188,-200.0,0.0001,2]
[420613575,1776342633198,-151.0,0.0001,2]
[420613576,1776342633207,-151.0,0.0001,2]
[420613577,1776342633217,-500.0,0.0001,2]
[420613578,1776342633227,-500.0,0.0001,2]
[420613579,1776342633237,-500.0,0.0001,2]
[420613580,1776342633247,-500.0,0.0001,2]
[420613581,1776342633257,-500.0,0.0001,2]
[420613582,1776342633266,-500.0,0.0001,2]
[420613583,1776342633276,-500.0,0.0001,2]
[420613584,1776342633286,-500.0,0.0001,2]
[420613585,1776342633297,-500.0,0.0001,2]
[420613586,1776342633307,-500.0,0.0001,2]
[420613587,1776342633316,-500.0,0.0001,2]
[420613588,1776342633326,-151.0,0.0001,2]
[420613589,1776342633338,-1386.78395259,0.0001,2]
[420613590,1776342633348,-500.0,0.00010027,2]
[420613591,1776342633358,-599.476,0.00010079,2]
[420613592,1776342633368,-1221.066,0.00010079,2]
[420613593,1776342633379,-928.317,0.00010079,2]
[420613594,1776342633388,-622.0,0.00010079,2]
[420613595,1776342633398,-1351.686,0.00010079,2]
[420613596,1776342633408,-500.0,0.0001012,2]
[420613597,1776342633419,-500.0,0.0001012,2]
[420613598,1776342633429,-500.0,0.0001012,2]
[420613599,1776342633439,-612.64553668,0.0001012,2]
[420613600,1776342633449,-2000.0,0.00010123,2]
[420613601,1776342633459,-600.0,0.000102,2]
[420613602,1776342633469,-1984.1077029,0.000102,2]
[420613603,1776342633479,-4017.606,0.000102,2]
[420613604,1776342633489,-350.15,0.000102,2]
[420613605,1776342633499,-29012.5643884,0.00010227,2]
[420613606,1776342633510,-3188.0478118,0.00010227,2]
[420613607,1776342633520,-2234.5853759,0.00010227,2]
[420613608,1776342633529,-2536.71939825,0.00010227,2]
[420613609,1776342633572,-0.3636935,0.00010227,2]
[420613611,1776342638799,-151.47845776,0.00010046,2]
[420613612,1776342638809,-848.52154224,0.00010227,2]
[420613779,1776342807847,689.64,0.000164,120]
[420613780,1776343000769,620.67,0.000164,120]
[420613781,1776343189817,558.61,0.000164,120]
[420613782,1776343204457,202.0,7.5e-05,3]
[420613783,1776343204722,202.0,8.263e-05,3]
[420613784,1776343379379,502.75,0.000164,120]
[420613785,1776343460058,4719.01088076,9.026e-05,30]
[420613786,1776343569571,452.47,0.000164,120]
[420613787,1776343768068,407.22,0.000164,120]
[420613788,1776343805050,182.0,7.5e-05,3]
[420613789,1776343805308,182.0,8.263e-05,3]
[420613790,1776343831719,-182.0,9.026e-05,3]
[420613791,1776343831728,-1288.74,9.084e-05,2]
[420613792,1776343831738,-396.17540392,9.133e-05,2]
[420613793,1776343831826,-1456.24459608,9.133e-05,2]
[420613794,1776343831836,-1403.2634,9.296e-05,2]
[420613795,1776343831846,-675.4368,9.296e-05,2]
[420613796,1776343831855,-559.3495,9.296e-05,2]
[420613797,1776343831864,-1200.0,9.344e-05,2]
[420613798,1776343831874,-150.43891779,9.345e-05,2]
[420613799,1776343831883,-150.0,9.345e-05,2]
[420613800,1776343831892,-150.0,9.345e-05,2]
[420613801,1776343831902,-150.0,9.345e-05,2]
[420613802,1776343831911,-150.94695297,9.345e-05,2]
[420613803,1776343831920,-150.0,9.345e-05,2]
[420613804,1776343831929,-150.0,9.345e-05,2]
[420613805,1776343831939,-151.3419958,9.345e-05,2]
[420613806,1776343831948,-151.13714091,9.345e-05,2]
[420613807,1776343831957,-150.0,9.345e-05,2]
[420613808,1776343831966,-150.0,9.345e-05,2]
[420613809,1776343831976,-150.0,9.345e-05,2]
[420613810,1776343831985,-150.0,9.345e-05,2]
[420613811,1776343831993,-200.0,9.347e-05,2]
[420613812,1776343832002,-503.27294265,9.373e-05,2]
[420613813,1776343832012,-312.24786116,9.373e-05,2]
[420613814,1776343832021,-500.0,9.689e-05,2]
[420613815,1776343832031,-337.32499953,9.689e-05,2]
[420613816,1776343832041,-174.61919141,9.69e-05,2]
[420613817,1776343832050,-9552.16786547,9.69e-05,2]
[420613818,1776343832060,-721.12765535,9.69e-05,2]
[420613819,1776343832070,-500.0,9.69e-05,2]
[420613820,1776343832079,-500.0,9.69e-05,2]
[420613821,1776343832089,-500.0,9.69e-05,2]
[420613822,1776343832098,-500.0,9.69e-05,2]
[420613823,1776343832108,-500.0,9.69e-05,2]
[420613824,1776343832117,-500.0,9.69e-05,2]
[420613825,1776343832128,-500.0,9.69e-05,2]
[420613826,1776343832137,-500.0,9.69e-05,2]
[420613827,1776343832146,-500.0,9.69e-05,2]
[420613828,1776343832156,-500.0,9.69e-05,2]
[420613829,1776343832165,-200.0,9.69e-05,2]
[420613830,1776343832174,-578.20924308,9.69e-05,2]
[420613831,1776343832184,-500.0,9.69e-05,2]
[420613832,1776343832194,-200.0,9.69e-05,2]
[420613833,1776343832203,-152.15715475,9.69e-05,2]
[420613834,1776343832213,-151.0,9.69e-05,2]
[420613835,1776343832223,-500.0,9.69e-05,2]
[420613836,1776343832232,-743.50770149,9.69e-05,2]
[420613837,1776343832241,-9905.5980765,9.745e-05,2]
[420613838,1776343832251,-182.0,9.789e-05,3]
[420613839,1776343832260,-350.0,9.791e-05,2]
[420613840,1776343832269,-10272.10520533,9.8e-05,2]
[420613841,1776343832279,-8327.89125505,9.855e-05,2]
[420613853,1776343839737,-720.05176054,9.855e-05,2]
[420613854,1776343839794,-400.0,9.855e-05,2]
[420613858,1776343845784,-1204.23008233,9.855e-05,2]
[420613859,1776343845794,-1538.46026393,9.91e-05,2]
[420613860,1776343845889,-6540.93113395,9.91e-05,2]
[420613874,1776343848504,-2966.91210467,9.91e-05,2]
[420613875,1776343848514,-250.0,9.929e-05,2]
[420613876,1776343848524,-250.0,9.929e-05,2]
[420613877,1776343848534,-460.0,9.929e-05,2]
[420613878,1776343848544,-270.88081744,0.0001,10]
[420613879,1776343848554,-200.0,0.0001,2]
[420613880,1776343848563,-1139.58993693,0.0001,2]
[420613881,1776343848573,-151.0,0.0001,2]
[420613882,1776343848582,-151.0,0.0001,2]
[420613883,1776343848592,-151.0,0.0001,2]
[420613884,1776343848601,-151.0,0.0001,2]
[420613885,1776343848610,-151.0,0.0001,2]
[420613886,1776343848620,-151.0,0.0001,2]
[420613887,1776343848629,-151.0,0.0001,2]
[420613888,1776343848639,-151.0,0.0001,2]
[420613889,1776343848648,-151.0,0.0001,2]
[420613890,1776343848657,-151.0,0.0001,2]
[420613891,1776343848667,-151.0,0.0001,2]
[420613892,1776343848676,-350.0,0.00010046,2]
[420613893,1776343848686,-200.0,0.00010046,2]
[420613894,1776343848696,-500.0,0.00010046,2]
[420613895,1776343848707,-500.0,0.00010046,2]
[420613896,1776343848716,-500.0,0.00010046,2]
[420613897,1776343848726,-500.0,0.00010046,2]
[420613898,1776343848737,-500.0,0.00010046,2]
[420613899,1776343848746,-500.0,0.00010046,2]
[420613900,1776343848757,-500.0,0.00010046,2]
[420613901,1776343848766,-500.0,0.00010046,2]
[420613902,1776343848775,-500.0,0.00010046,2]
[420613903,1776343848785,-500.0,0.00010046,2]
[420613904,1776343848794,-500.0,0.00010046,2]
[420613905,1776343848804,-500.0,0.00010046,2]
[420613906,1776343848814,-500.0,0.00010046,2]
[420613907,1776343848824,-500.0,0.00010046,2]
[420613908,1776343848833,-500.0,0.00010046,2]
[420613909,1776343848842,-500.0,0.00010046,2]
[420613910,1776343848852,-500.0,0.00010046,2]
[420613912,1776343848862,-500.0,0.00010046,2]
[420613914,1776343848871,-640.07014536,0.00010046,2]
[420613916,1776343848881,-500.0,0.00010046,2]
[420613918,1776343848890,-500.0,0.00010046,2]
[420613920,1776343848900,-500.0,0.00010046,2]
[420613922,1776343848910,-500.0,0.00010046,2]
[420613924,1776343848919,-364.85264262,0.00010046,2]
[420613926,1776343848929,-150.0,0.00010046,2]
[420613928,1776343848938,-500.0,0.00010046,2]
[420613930,1776343848948,-500.0,0.00010046,2]
[420613932,1776343848956,-500.0,0.00010046,2]
[420613934,1776343848966,-500.0,0.00010046,2]
[420613936,1776343848975,-500.0,0.00010046,2]
[420613938,1776343848985,-500.0,0.00010046,2]
[420613940,1776343848994,-350.0,0.0001005,2]
[420613941,1776343849003,-500.0,0.00010082,2]
[420613942,1776343849013,-500.0,0.00010082,2]
[420613943,1776343849022,-500.0,0.00010082,2]
[420613944,1776343849032,-500.0,0.00010082,2]
[420613945,1776343849041,-500.0,0.00010082,2]
[420613946,1776343849051,-500.0,0.00010082,2]
[420613947,1776343849060,-500.0,0.00010082,2]
[420613948,1776343849070,-500.0,0.00010082,2]
[420613949,1776343849079,-500.0,0.00010082,2]
[420613950,1776343849089,-573.02271931,0.00010082,2]
[420613951,1776343849098,-62971.75038501,0.00010087,2]
[420613952,1776343849108,-350.0,0.00010094,2]
[420613953,1776343849118,-162.15,0.00010115,2]
[420613954,1776343849127,-3214.085,0.00010123,2]
[420613955,1776343849137,-280.12,0.00010123,2]
[420613956,1776343849146,-1047.0,0.00010124,2]
[420613957,1776343849155,-1348.0,0.00010124,2]
[420613958,1776343849164,-622.0,0.00010124,2]
[420613959,1776343849174,-1265.0,0.00010124,2]
[420613960,1776343849183,-2612.327,0.00010124,2]
[420613961,1776343849192,-416.0,0.00010124,2]
[420613962,1776343849201,-6028.0,0.00010124,2]
[420613963,1776343849210,-344.8127262,0.00010168,2]
[420613964,1776343849220,-1656.7443299,0.00010168,2]
[420613965,1776343849228,-6220.379839,0.00010168,2]
[420613966,1776343849238,-213.9108282,0.00010168,2]
[420613967,1776343849247,-559.4156,0.000102,2]
[420613968,1776343849257,-559.41561,0.000102,2]
[420613969,1776343849266,-559.41561,0.0001022,2]
[420613970,1776343849275,-6758.49480794,0.00010227,2]
[420613971,1776343849307,-344.66,0.00010227,2]
[420613972,1776343957166,366.5,0.000163,120]
[420613974,1776344145580,329.85,0.000163,120]
[420613975,1776344334246,296.87,0.000163,120]
[420613976,1776344404493,153.0,7.5e-05,3]
[420613977,1776344404814,153.0,8.306e-05,3]
[420613978,1776344445158,-153.0,9.111e-05,3]
[420613979,1776344445182,-1500.0,9.424e-05,2]
[420613980,1776344445205,-5000.0,9.624e-05,2]
[420613981,1776344445229,-347.0,9.69e-05,2]
[420613983,1776344464993,-153.0,9.69e-05,2]
[420613984,1776344476348,-500.0,9.337e-05,2]
[420613985,1776344523099,267.18,0.000163,120]
[420613986,1776344541376,-578.20924308,9.698e-05,2]
[420613987,1776344630686,-150.0,9.487e-05,2]
[420613988,1776344712134,-150.0,9.582e-05,2]
[420613989,1776344712158,-150.0,9.668e-05,2]
[420613990,1776344714149,240.46,0.000163,120]
[420613991,1776344900479,216.42,0.000163,120]
[420613992,1776344965706,50000.0,0.000165,30]
[420613993,1776345003413,701.98641359,0.000165,30]
[420613994,1776345004297,153.0,7.5e-05,3]
[420613995,1776345018102,4000.0,0.000165,30]
[420613997,1776345032201,-153.0,8.467e-05,3]
[420613998,1776345032211,-153.0,9.433e-05,3]
[420613999,1776345032221,-578.20924308,9.781e-05,2]
[420614000,1776345032231,-350.0,9.873e-05,2]
[420614001,1776345032241,-150.0,9.882e-05,2]
[420614002,1776345032250,-500.0,9.89e-05,2]
[420614003,1776345032260,-350.0,9.899e-05,2]
[420614004,1776345032270,-150.0,9.968e-05,2]
[420614005,1776345032280,-350.0,9.972e-05,2]
[420614006,1776345032290,-150.0,9.999e-05,2]
[420614007,1776345032300,-5000.0,0.0001,2]
[420614008,1776345032310,-895.67459001,0.0001,2]
[420614010,1776345032320,-2757.45734095,0.0001,2]
[420614011,1776345032330,-16198.45909822,0.0001,2]
[420614012,1776345032339,-2500.0,0.00010006,2]
[420614013,1776345032349,-1697.6488261,0.00010068,2]
[420614014,1776345032359,-151.0,0.00010103,2]
[420614015,1776345032369,-500.0,0.00010105,2]
[420614016,1776345032378,-500.0,0.00010105,2]
[420614017,1776345032387,-500.0,0.00010105,2]
[420614018,1776345032397,-500.0,0.00010105,2]
[420614019,1776345032406,-500.0,0.00010105,2]
[420614020,1776345032416,-500.0,0.00010105,2]
[420614021,1776345032425,-500.0,0.00010105,2]
[420614022,1776345032435,-500.0,0.00010105,2]
[420614023,1776345032445,-500.0,0.00010105,2]
[420614025,1776345032455,-500.0,0.00010105,2]
[420614027,1776345032464,-500.0,0.00010105,2]
[420614029,1776345032473,-607.30950586,0.00010105,2]
[420614030,1776345032484,-500.0,0.00010105,2]
[420614031,1776345032493,-500.0,0.00010105,2]
[420614032,1776345032502,-500.0,0.00010105,2]
[420614034,1776345032511,-500.0,0.00010105,2]
[420614036,1776345032520,-500.0,0.00010105,2]
[420614038,1776345032529,-500.0,0.00010105,2]
[420614039,1776345032538,-500.0,0.00010105,2]
[420614040,1776345032548,-500.0,0.00010105,2]
[420614041,1776345032557,-500.0,0.00010105,2]
[420614042,1776345032566,-500.0,0.00010105,2]
[420614043,1776345032575,-500.0,0.00010105,2]
[420614044,1776345032586,-500.0,0.00010105,2]
[420614045,1776345032595,-500.0,0.00010105,2]
[420614046,1776345032604,-500.0,0.00010105,2]
[420614047,1776345032613,-500.0,0.00010105,2]
[420614048,1776345032623,-500.0,0.00010105,2]
[420614049,1776345032632,-500.0,0.00010105,2]
[420614050,1776345032642,-500.0,0.00010105,2]
[420614051,1776345032652,-500.0,0.00010105,2]
[420614052,1776345032661,-482.69169741,0.00010105,2]
[420614053,1776345032671,-500.0,0.00010105,2]
[420614054,1776345032680,-260.06743709,0.00010105,2]
[420614055,1776345032690,-500.0,0.00010105,2]
[420614056,1776345032699,-500.0,0.00010105,2]
[420614057,1776345032708,-524.05739416,0.00010105,2]
[420614058,1776345032718,-500.0,0.00010105,2]
[420614059,1776345032727,-500.0,0.00010105,2]
[420614060,1776345032736,-647.43521936,0.00010105,2]
[420614061,1776345032746,-500.0,0.00010105,2]
[420614062,1776345032756,-500.0,0.00010105,2]
[420614063,1776345032766,-418.71665123,0.00010105,2]
[420614064,1776345032775,-207.16483834,0.00010105,2]
[420614065,1776345032785,-647.43521935,0.00010105,2]
[420614066,1776345032795,-647.43521935,0.00010105,2]
[420614067,1776345032804,-647.43521935,0.00010105,2]
[420614068,1776345032814,-647.43521935,0.00010105,2]
[420614069,1776345032823,-647.43521935,0.00010105,2]
[420614070,1776345032832,-647.43521935,0.00010105,2]
[420614071,1776345032842,-647.43521935,0.00010105,2]
[420614072,1776345032852,-500.0,0.00010105,2]
[420614073,1776345032861,-500.0,0.00010105,2]
[420614074,1776345032872,-294.8704387,0.00010105,2]
[420614075,1776345032881,-500.0,0.00010105,2]
[420614076,1776345032892,-500.0,0.00010105,2]
[420614077,1776345032902,-294.8704387,0.00010105,2]
[420614078,1776345032911,-500.0,0.00010105,2]
[420614079,1776345032921,-500.0,0.00010105,2]
[420614080,1776345032930,-294.8704387,0.00010105,2]
[420614081,1776345032940,-647.43521935,0.00010105,2]
[420614082,1776345032949,-3381.14674,0.00010106,2]
[420614083,1776345032959,-152669.60966155,0.00010106,2]
[420614084,1776345032971,-18558.82141581,0.00010106,2]
[420614085,1776345032983,-63079.56930559,0.00010106,2]
[420614086,1776345032994,-9788.88494585,0.00010106,2]
[420614087,1776345033003,-250.0,0.00010124,2]
[420614088,1776345033013,-150.0,0.00010124,2]
[420614089,1776345033022,-3528.0,0.00010124,2]
[420614090,1776345033031,-622.0,0.00010124,2]
[420614091,1776345033041,-1047.0,0.00010124,2]
[420614092,1776345033050,-2852.307,0.00010145,2]
[420614093,1776345033059,-261.448,0.00010145,2]
[420614094,1776345033069,-500.0,0.00010173,2]
[420614095,1776345033078,-500.0,0.00010173,2]
[420614096,1776345033088,-500.0,0.00010173,2]
[420614097,1776345033097,-425.57591744,0.00010173,2]
[420614098,1776345033107,-150.0,0.00010182,2]
[420614099,1776345033117,-6540.93113395,0.00010194,2]
[420614100,1776345033127,-151.0,0.00010194,2]
[420614101,1776345033138,-164.9027629,0.00010194,2]
[420614102,1776345033147,-174.61919141,0.00010194,2]
[420614103,1776345033157,-612.06325636,0.00010199,2]
[420614104,1776345033166,-500.0,0.00010199,2]
[420614105,1776345033176,-558.13814419,0.00010199,2]
[420614106,1776345033186,-500.0,0.00010199,2]
[420614107,1776345033196,-21626.20331827,0.000102,2]
[420614110,1776345039092,-264442.71478173,0.000102,2]
[420614111,1776345039101,-124599.3265,0.000102,2]
[420614112,1776345039111,-1000.0,0.000102,2]
[420614113,1776345039120,-505.02890409,0.000102,2]
[420614114,1776345039129,-279.7078,0.000102,2]